bitfinex/quotes_SOLUSD_20240909
["timestamp","ask_amount","ask_price","bid_price","bid_amount"]
[1725900812730,0.12549,132.77,132.66,0.8542609]
[1725900812885,45.12549,132.77,132.66,0.8542609]
[1725900815380,6.2824,132.78,132.67,50.0]
[1725900815585,6.2824,132.78,132.71,50.0]
[1725900815889,6.2824,132.78,132.72,1.50610997]
[1725900816218,6.2824,132.78,132.73,51.50611013]
[1725900816398,6.2824,132.78,132.74,1.50603575]
[1725900816791,6.2824,132.78,132.73,50.0]
[1725900817181,6.2824,132.78,132.74,1.50610273]
[1725900817713,6.2824,132.78,132.73,50.0]
[1725900819807,6.2824,132.78,132.71,57.3450139]
[1725900819808,6.2824,132.78,132.71,107.3450139]
[1725900820008,6.2824,132.78,132.72,20.0]
[1725900820399,6.2824,132.78,132.71,50.0]
[1725900822793,6.2824,132.78,132.69,50.0]
[1725900823121,6.2824,132.78,132.67,50.0]
[1725900823991,0.12549,132.77,132.66,0.8542609]
[1725900824192,45.12549,132.77,132.66,50.8542609]
[1725900824916,45.12549,132.77,132.66,0.8542609]
[1725900825097,45.12549,132.77,132.66,50.8542609]
[1725900825920,6.2824,132.78,132.68,50.0]
[1725900826912,45.12549,132.77,132.66,0.8542609]
[1725900832434,16.2432,132.86,132.78,50.0]
[1725900832722,16.2432,132.86,132.8,50.0]
[1725900832921,16.2432,132.86,132.82,50.0]
[1725900833099,6.123,132.93,132.84,50.0]
[1725900833100,16.2432,132.92,132.84,50.0]
[1725900833427,16.2432,132.92,132.86,50.0]
[1725900833723,16.2432,132.92,132.87,20.74975266]
[1725900834127,16.2432,132.92,132.82,50.0]
[1725900834324,16.2432,132.92,132.83,20.0]
[1725900834622,16.2432,132.92,132.84,50.0]
[1725900835122,16.2432,132.92,132.83,20.0]
[1725900835337,16.2432,132.92,132.79,50.0]
[1725900835929,60.24076845,133.03,132.79,50.0]
[1725900835930,6.1001,133.01,132.94,50.0]
[1725900836240,15.5068,133.02,132.95,70.0]
[1725900836434,15.5068,133.02,132.95,20.0]
[1725900836720,15.5068,133.02,132.94,20.0]
[1725900837517,15.5068,133.02,132.92,20.0]
[1725900838922,45.12549,133.01,132.9,20.0]
[1725900840506,45.12549,133.01,132.89,107.07280954]
[1725900840712,0.12549,132.99,132.85,50.0]
[1725900841023,45.12549,132.99,132.84,57.07280954]
[1725900841205,45.12549,132.99,132.85,50.0]
[1725900842913,45.12549,132.99,132.84,57.07280954]
[1725900843115,45.12549,132.99,132.85,20.0]
[1725900843319,45.12549,132.99,132.85,70.0]
[1725900843711,45.12549,132.99,132.85,20.0]
[1725900843918,45.12549,132.99,132.85,50.0]
[1725900844324,45.0,132.99,132.87,50.0]
[1725900844919,6.5928,133.0,132.88,1.50446071]
[1725900845120,6.5928,133.0,132.9,57.07280954]
[1725900845330,6.5928,133.0,132.92,57.07280954]
[1725900845525,6.5928,133.0,132.93,21.5038406]
[1725900846245,6.5928,133.0,132.93,71.5038406]
[1725900846456,6.5928,133.0,132.94,57.07280954]
[1725900846917,6.5928,133.0,132.93,70.0]
[1725900847728,6.5928,133.0,132.93,20.0]
[1725900848829,6.5928,133.0,132.94,1.50387333]
[1725900849334,6.5928,133.0,132.93,20.0]
[1725900849535,6.5928,133.0,132.9,57.07280954]
[1725900849731,6.5928,133.0,132.91,20.0]
[1725900850050,45.12549,132.99,132.88,57.07280954]
[1725900850442,6.5928,133.0,132.88,57.07280954]
[1725900850651,45.12549,132.99,132.88,57.07280954]
[1725900851555,45.12549,132.99,132.89,21.50432435]
[1725900851852,45.0,132.99,132.89,70.0]
[1725900852038,45.0,132.99,132.89,20.0]
[1725900852549,6.5928,133.0,132.89,70.0]
[1725900852725,6.5928,133.0,132.89,20.0]
[1725900853962,45.0,132.99,132.89,20.0]
[1725900854432,0.12549,132.98,132.89,20.0]
[1725900854936,45.0,132.99,132.9,1.50435474]
[1725900855741,45.0,132.99,132.89,20.0]
[1725900855935,0.12549,132.98,132.89,20.0]
[1725900856151,0.12549,132.98,132.87,50.0]
[1725900856461,0.12549,132.98,132.88,1.5045472]
[1725900856656,0.12549,132.98,132.87,50.0]
[1725900856846,0.12549,132.98,132.84,107.07280954]
[1725900857041,0.12549,132.96,132.82,107.07280954]
[1725900857240,45.12549,132.96,132.82,107.07280954]
[1725900857755,0.12549,132.94,132.82,50.0]
[1725900858063,45.12549,132.94,132.82,50.0]
[1725900860066,45.12549,132.94,132.83,20.0]
[1725900861838,45.12549,132.94,132.81,20.0]
[1725900863336,45.12549,132.94,132.78,107.07280954]
[1725900863537,0.12549,132.92,132.78,50.0]
[1725900863739,0.12549,132.9,132.76,107.07280954]
[1725900864043,45.12549,132.9,132.76,107.07280954]
[1725900864345,45.12549,132.9,132.78,50.0]
[1725900864559,45.12549,132.9,132.77,47.68841027]
[1725900864852,45.12549,132.9,132.78,50.0]
[1725900865171,6.5778,132.91,132.8,97.68841027]
[1725900865370,6.5778,132.91,132.82,50.0]
[1725900865537,6.5778,132.91,132.83,1.50494168]
[1725900865864,6.5778,132.91,132.84,47.68841027]
[1725900866568,6.5778,132.91,132.82,47.68841027]
[1725900866860,6.5778,132.91,132.83,20.0]
[1725900867063,6.5778,132.91,132.84,47.68841027]
[1725900867262,6.5778,132.91,132.83,70.0]
[1725900867263,6.5778,132.91,132.86,47.68841027]
[1725900867763,6.5778,132.91,132.84,47.68841027]
[1725900868063,6.5778,132.91,132.85,20.0]
[1725900868564,6.5778,132.91,132.84,20.0]
[1725900870356,6.5778,132.91,132.82,20.0]
[1725900871368,6.5778,132.91,132.83,50.0]
[1725900871549,6.5778,132.91,132.84,20.0]
[1725900872046,6.5778,132.91,132.82,20.0]
[1725900872465,6.5778,132.91,132.83,1.50513944]
[1725900872962,45.12549,132.9,132.82,20.0]
[1725900873167,45.12549,132.9,132.8,20.0]
[1725900873341,45.12549,132.9,132.77,107.16718627]
[1725900874961,45.12549,132.9,132.77,50.0]
[1725900875272,45.12549,132.9,132.75,107.16718627]
[1725900875843,45.12549,132.9,132.77,50.0]
[1725900876249,45.12549,132.9,132.78,20.0]
[1725900876642,0.12549,132.88,132.75,107.16718627]
[1725900876972,0.12549,132.88,132.73,50.0]
[1725900876973,51.13529,132.88,132.73,50.0]
[1725900877473,51.13529,132.88,132.71,68.35988965]
[1725900877474,51.13529,132.88,132.71,107.16718627]
[1725900878257,0.12549,132.85,132.69,107.16718627]
[1725900878474,0.12549,132.85,132.67,11.19270338]
[1725900878475,0.12549,132.81,132.67,107.16718627]
[1725900878659,45.12549,132.81,132.67,107.16718627]
[1725900879175,45.12549,132.81,132.69,50.0]
[1725900879467,45.12549,132.81,132.7,1.50642997]
[1725900879674,45.12549,132.81,132.7,11.3133737]
[1725900879870,45.12549,132.81,132.69,50.0]
[1725900880070,45.12549,132.81,132.7,1.50637004]
[1725900880272,45.12549,132.81,132.69,50.0]
[1725900881470,45.12549,132.81,132.7,1.50651967]
[1725900881655,45.12549,132.81,132.71,1.50638317]
[1725900882379,45.12549,132.81,132.7,20.0]
[1725900883875,0.12549,132.79,132.71,1.50662027]
[1725900884058,0.12549,132.77,132.66,0.8542609]
[1725900884371,45.12549,132.77,132.67,51.50693003]
[1725900884580,45.0,132.77,132.68,1.50672595]
[1725900884878,6.1965,132.78,132.68,1.50672595]
[1725900885375,6.1965,132.78,132.67,107.16718627]
[1725900885672,0.12549,132.77,132.66,0.8542609]
[1725900885920,45.12549,132.77,132.66,0.8542609]
[1725900886478,45.12549,132.77,132.66,20.8542609]
[1725900887174,45.12549,132.77,132.66,0.8542609]
[1725900887370,45.12549,132.77,132.67,1.5069889]
[1725900887555,45.12549,132.77,132.66,0.8542609]
[1725900888574,45.12549,132.77,132.66,20.8542609]
[1725900888961,0.12549,132.75,132.66,20.8542609]
[1725900889257,45.12549,132.75,132.66,20.8542609]
[1725900889681,15.9444,132.74,132.66,0.8542609]
[1725900890885,6.1946,132.72,132.66,0.8542609]
[1725900891279,45.0,132.71,132.66,0.8542609]
[1725900891690,6.1946,132.72,132.66,0.8542609]
[1725900894303,6.1946,132.72,132.67,1.50712655]
[1725900894496,6.1946,132.72,132.68,1.50695584]
[1725900894669,6.1946,132.72,132.66,0.8542609]
[1725900895798,6.1946,132.72,132.67,1.50695696]
[1725900896096,6.1946,132.72,132.66,0.8542609]
[1725900897094,6.1946,132.72,132.67,1.50709925]
[1725900897305,6.1946,132.72,132.68,1.5071866]
[1725900898181,6.1946,132.72,132.66,0.8542609]
[1725900900989,6.1946,132.72,132.67,1.50723081]
[1725900901190,6.1946,132.72,132.68,1.50714526]
[1725900901505,6.1946,132.72,132.66,0.8542609]
[1725900902274,6.1946,132.72,132.67,1.50700423]
[1725900902597,15.9444,132.74,132.69,50.0]
[1725900902802,6.4489,132.77,132.71,50.0]
[1725900902985,15.7724,132.79,132.73,47.79051123]
[1725900903184,15.7724,132.79,132.74,1.50622019]
[1725900903788,15.7724,132.79,132.72,11.3133737]
[1725900903976,15.7724,132.79,132.71,50.0]
[1725900904303,15.7724,132.79,132.73,50.0]
[1725900904610,15.7724,132.79,132.74,47.79051123]
[1725900904818,6.4489,132.81,132.74,47.79051123]
[1725900905007,6.4489,132.81,132.72,31.3133737]
[1725900905008,6.4489,132.81,132.72,20.0]
[1725900905189,6.4489,132.81,132.7,47.79051123]
[1725900905389,6.4489,132.81,132.71,20.0]
[1725900906321,45.0,132.8,132.69,50.0]
[1725900906616,45.0,132.8,132.7,21.50589646]
[1725900906789,45.0,132.8,132.71,1.50578298]
[1725900907210,45.0,132.8,132.7,20.0]
[1725900907715,6.4489,132.81,132.71,12.81982298]
[1725900907890,6.4489,132.81,132.71,1.50644928]
[1725900908433,6.4489,132.81,132.72,97.79051123]
[1725900908607,6.4489,132.81,132.73,1.50611806]
[1725900908793,6.4489,132.81,132.74,1.50612069]
[1725900909116,6.4489,132.81,132.74,99.29663192]
[1725900909510,6.4489,132.81,132.74,1.50612069]
[1725900909692,6.4489,132.81,132.69,50.0]
[1725900909890,6.4489,132.81,132.66,0.8542609]
[1725900910318,6.4489,132.81,132.67,1.5068515]
[1725900910495,0.12549,132.8,132.68,1.50676881]
[1725900910700,45.12549,132.8,132.68,1.50676881]
[1725900910927,45.12549,132.8,132.67,50.0]
[1725900912702,16.2599,132.79,132.66,0.8542609]
[1725900912902,0.12549,132.76,132.66,0.8542609]
[1725900913124,45.12549,132.76,132.66,0.8542609]
[1725900913299,45.12549,132.76,132.67,1.50707742]
[1725900913496,45.0,132.76,132.66,0.8542609]
[1725900913705,6.0553,132.77,132.66,0.8542609]
[1725900913900,45.12549,132.76,132.66,0.8542609]
[1725900914316,45.12549,132.76,132.66,20.8542609]
[1725900914715,45.12549,132.76,132.66,50.8542609]
[1725900914925,6.0553,132.77,132.66,50.8542609]
[1725900916108,6.0553,132.77,132.68,50.0]
[1725900916420,6.0553,132.77,132.7,50.0]
[1725900916724,6.0553,132.77,132.71,1.50640192]
[1725900916924,16.2599,132.79,132.71,1.50640192]
[1725900917129,16.2599,132.79,132.72,50.0]
[1725900917635,6.0487,132.81,132.75,50.0]
[1725900917923,23.58793244,132.84,132.76,1.50572809]
[1725900918141,23.58793244,132.84,132.79,50.0]
[1725900918142,7.85463244,132.84,132.79,50.0]
[1725900918298,6.0487,132.85,132.77,50.0]
[1725900918503,6.0487,132.85,132.78,20.0]
[1725900918804,21.782,132.89,132.79,50.0]
[1725900919013,21.782,132.89,132.78,67.79051123]
[1725900919014,21.782,132.89,132.81,50.0]
[1725900919220,21.782,132.89,132.83,50.0]
[1725900919730,7.85335263,132.92,132.85,50.0]
[1725900919938,1.96696703,132.95,132.85,50.0]
[1725900919939,6.0418,132.93,132.85,50.0]
[1725900921125,6.0418,132.93,132.83,50.0]
[1725900922016,45.12549,132.92,132.81,50.0]
[1725900922202,45.12549,132.92,132.82,20.0]
[1725900922412,45.12549,132.92,132.78,47.79051123]
[1725900922413,45.12549,132.92,132.78,50.0]
[1725900923722,45.12549,132.92,132.79,20.0]
[1725900925814,45.12549,132.92,132.78,50.0]
[1725900926014,45.12549,132.92,132.8,1.50534957]
[1725900926214,45.12549,132.92,132.78,50.0]
[1725900927411,45.12549,132.92,132.79,1.50539339]
[1725900927727,45.12549,132.92,132.8,1.50534688]
[1725900927909,8.01151878,132.93,132.8,50.0]
[1725900929207,0.12549,132.92,132.81,1.50514323]
[1725900929408,0.12549,132.92,132.8,50.0]
[1725900929705,0.12549,132.92,132.81,1.50514349]
[1725900929902,45.12549,132.92,132.81,1.50514349]
[1725900930525,7.85557435,132.91,132.81,1.50514349]
[1725900930743,7.85557435,132.91,132.8,50.0]
[1725900931112,7.85557435,132.91,132.82,50.0]
[1725900931331,6.0418,132.93,132.86,50.0]
[1725900931535,6.0418,132.93,132.87,1.50458097]
[1725900932430,6.3088,132.97,132.88,50.0]
[1725900932930,6.3088,132.97,132.86,50.0]
[1725900933130,6.3088,132.97,132.87,20.0]
[1725900933640,6.3088,132.97,132.86,50.0]
[1725900933806,45.0,132.96,132.86,50.0]
[1725900934825,6.43429,132.97,132.86,50.0]
[1725900936034,45.0,132.96,132.86,50.0]
[1725900936635,6.43429,132.97,132.86,50.0]
[1725900939848,8.39622823,132.97,132.86,50.0]
[1725900941130,45.12549,132.96,132.86,50.0]
[1725900942534,6.3088,132.97,132.88,50.0]
[1725900942736,6.3088,132.97,132.89,1.50427973]
[1725900943020,6.3088,132.97,132.88,50.0]
[1725900943021,7.8534354,132.96,132.9,51.50416725]
[1725900943222,15.4247,132.98,132.9,51.50416725]
[1725900943624,8.54765821,133.01,132.9,50.0]
[1725900943822,8.54765821,133.01,132.92,50.0]
[1725900944324,8.54765821,133.01,132.88,56.074]
[1725900944526,8.54765821,133.01,132.89,20.0]
[1725900945122,8.54765821,133.01,132.88,56.074]
[1725900945323,0.12549,133.0,132.88,50.0]
[1725900945554,45.12549,133.0,132.9,50.0]
[1725900945857,0.12549,133.0,132.9,50.0]
[1725900947643,8.54765821,133.01,132.92,50.0]
[1725900948243,8.54765821,133.01,132.87,15.484]
[1725900948244,8.54765821,133.01,132.9,50.0]
[1725900949146,0.12549,133.0,132.9,50.0]
[1725900949352,45.12549,133.0,132.9,50.0]
[1725900950942,45.0,133.0,132.9,50.0]
[1725900951332,0.12549,132.99,132.88,50.0]
[1725900951659,0.12549,132.99,132.88,70.0]
[1725900952032,0.12549,132.99,132.86,50.0]
[1725900952229,0.12549,132.99,132.84,6.074]
[1725900952230,0.12549,132.97,132.84,50.0]
[1725900952426,45.12549,132.97,132.84,50.0]
[1725900953438,0.12549,132.95,132.84,50.0]
[1725900953638,45.12549,132.95,132.84,50.0]
[1725900953949,45.12549,132.95,132.86,50.0]
[1725900954255,45.12549,132.95,132.84,50.0]
[1725900957759,45.12549,132.95,132.86,50.0]
[1725900957760,45.0,132.95,132.86,50.0]
[1725900957936,7.85566121,132.96,132.86,50.0]
[1725900959366,45.0,132.95,132.84,50.0]
[1725900959655,6.5815,132.93,132.84,50.0]
[1725900960063,6.5815,132.93,132.82,38.1100589]
[1725900960269,6.5815,132.93,132.81,50.0]
[1725900960270,45.12549,132.92,132.81,50.0]
[1725900962166,6.5815,132.93,132.84,50.0]
[1725900962337,6.5815,132.93,132.83,38.1100589]
[1725900962338,6.5815,132.93,132.86,50.0]
[1725900962539,6.5815,132.93,132.87,1.50455435]
[1725900962958,6.5502,132.96,132.88,50.0]
[1725900963262,6.5502,132.96,132.89,1.50428366]
[1725900963485,6.5502,132.96,132.9,50.0]
[1725900963766,15.7504,132.98,132.9,50.0]
[1725900963944,15.7504,132.98,132.92,50.0]
[1725900966138,15.7504,132.98,132.9,50.0]
[1725900966343,15.7504,132.98,132.86,47.59755004]
[1725900966344,15.7504,132.98,132.92,50.0]
[1725900966960,1.97865866,132.99,132.93,1.50397897]
[1725900967166,6.6384,133.0,132.94,50.0]
[1725900967348,6.6384,133.0,132.95,1.5037497]
[1725900967547,8.61057901,133.0,132.96,51.50375008]
[1725900967754,15.3783,133.03,132.96,51.50375008]
[1725900967755,15.3783,133.03,132.96,50.0]
[1725900968570,15.3783,133.03,132.98,50.0]
[1725900968751,15.3783,133.03,132.99,1.50321757]
[1725900969844,15.3783,133.03,133.0,1.50310453]
[1725900970063,15.3783,133.03,132.96,50.0]
[1725900971160,6.5652,133.08,132.99,50.0]
[1725900971355,6.5652,133.08,132.93,47.59755004]
[1725900971356,6.5652,133.08,133.03,50.0]
[1725900971562,6.5652,133.08,133.04,1.50265882]
[1725900971941,6.5652,133.08,133.03,50.0]
[1725900972141,16.3534,133.1,133.01,47.59755004]
[1725900972366,16.3534,133.1,133.02,50.0]
[1725900972562,16.3534,133.1,133.0,50.0]
[1725900974362,16.3534,133.1,133.02,50.0]
[1725900975463,16.3534,133.1,133.03,1.50268622]
[1725900975662,16.3534,133.1,133.02,50.0]
[1725900977158,16.3534,133.1,133.0,50.0]
[1725900977547,16.3534,133.1,133.01,1.50293268]
[1725900977774,16.3534,133.1,133.02,1.50289268]
[1725900978058,16.3534,133.1,133.02,50.0]
[1725900978762,16.3534,133.1,133.04,50.0]
[1725900979470,16.3534,133.1,133.05,1.50265441]
[1725900979644,16.3534,133.1,133.06,50.0]
[1725900979848,16.3534,133.1,133.07,1.50240787]
[1725900980073,16.3534,133.1,133.08,1.50244984]
[1725900980377,16.3534,133.1,133.06,50.0]
[1725900980763,16.3534,133.1,133.04,50.0]
[1725900983176,15.08679037,133.12,133.06,50.0]
[1725900983496,0.8542609,133.12,133.09,50.0]
[1725900983675,0.8542609,133.12,133.11,50.0]
[1725900983848,0.8542609,133.12,133.11,51.5017898]
[1725900984052,0.79864835,133.12,133.11,99.09933984]
[1725900984274,0.79864835,133.12,133.11,50.0]
[1725900984454,0.79864835,133.12,133.09,50.0]
[1725900984751,9.33377177,133.23,133.07,47.59755004]
[1725900984752,7.31088154,133.23,133.21,50.0]
[1725900986363,7.31088154,133.23,133.22,47.72304004]
[1725900986556,7.31088154,133.23,133.22,67.59755004]
[1725900987158,7.31088154,133.23,133.21,50.0]
[1725900987555,7.31088154,133.23,133.22,1.50060962]
[1725900987761,7.31088154,133.23,133.21,97.59755004]
[1725900988467,7.31088154,133.23,133.21,50.0]
[1725900989568,7.31088154,133.23,133.19,50.0]
[1725900989758,7.31088154,133.23,133.17,50.0]
[1725900991178,7.31088154,133.23,133.15,50.0]
[1725900991754,7.31088154,133.23,133.19,50.0]
[1725900992483,7.31088154,133.23,133.2,1.50099811]
[1725900992668,7.31088154,133.23,133.21,1.50088565]
[1725900993084,7.31088154,133.23,133.21,50.0]
[1725900993382,7.31088154,133.23,133.19,50.0]
[1725900993755,7.31088154,133.23,133.2,0.6606056]
[1725900993980,7.31088154,133.23,133.18,50.0]
[1725900994155,7.31088154,133.23,133.16,50.0]
[1725900994355,7.31088154,133.23,133.18,50.0]
[1725900995093,7.31088154,133.23,133.16,50.0]
[1725900995276,7.31088154,133.23,133.18,50.0]
[1725900995471,7.31088154,133.23,133.16,50.0]
[1725900995866,7.31088154,133.23,133.11,6.4912]
[1725900995867,7.31088154,133.23,133.17,1.50111302]
[1725900996086,0.8542609,133.25,133.22,50.0]
[1725900996294,5.0,133.35,133.31,50.0]
[1725900996472,5.0,133.35,133.33,50.0]
[1725900996692,5.0,133.35,133.33,51.49939355]
[1725900996872,5.0,133.35,133.31,97.59755004]
[1725900997189,5.0,133.35,133.33,50.0]
[1725900997373,5.0,133.35,133.34,1.49927936]
[1725900997571,5.0,133.35,133.33,97.59755004]
[1725900998074,5.0,133.35,133.33,50.0]
[1725900998282,4.8746,133.35,133.34,50.0]
[1725900998464,4.8746,133.35,133.34,126.74035821]
[1725900999182,4.8746,133.35,133.34,106.74035821]
[1725900999596,4.8746,133.35,133.34,50.0]
[1725900999975,4.8746,133.35,133.31,50.0]
[1725901000383,4.8746,133.35,133.32,51.49960381]
[1725901000692,4.8746,133.35,133.32,50.0]
[1725901001264,4.8746,133.35,133.33,1.49945658]
[1725901001468,4.8746,133.35,133.3,50.0]
[1725901001764,4.8746,133.35,133.28,50.0]
[1725901002271,4.8746,133.35,133.2,16.1618]
[1725901002272,4.8746,133.35,133.26,50.0]
[1725901002486,0.12549,133.34,133.24,50.0]
[1725901002702,45.12549,133.34,133.24,50.0]
[1725901003004,6.33,133.33,133.22,50.0]
[1725901003168,0.12549,133.31,133.22,50.0]
[1725901003370,16.51259,133.31,133.2,50.0]
[1725901003588,0.12549,133.29,133.18,50.0]
[1725901004277,0.12549,133.29,133.19,1.50101315]
[1725901004481,0.12549,133.29,133.18,50.0]
[1725901004684,0.12549,133.29,133.2,50.0]
[1725901004991,7.84747623,133.3,133.22,50.0]
[1725901005175,7.84747623,133.3,133.21,1.50079776]
[1725901005176,16.3871,133.31,133.25,50.0]
[1725901005385,16.3871,133.31,133.26,1.50024105]
[1725901005566,16.3871,133.31,133.25,50.0]
[1725901005567,16.3871,133.31,133.27,1.50015417]
[1725901005765,16.3871,133.31,133.23,50.0]
[1725901006089,16.3871,133.31,133.21,1.50019779]
[1725901006090,16.3871,133.31,133.25,50.0]
[1725901006919,16.3871,133.31,133.26,1.50021304]
[1725901007204,16.3871,133.31,133.25,50.0]
[1725901007771,16.3871,133.31,133.26,1.50016837]
[1725901008097,16.3871,133.31,133.25,50.0]
[1725901009484,4.8746,133.35,133.33,50.0]
[1725901009869,4.8746,133.35,133.31,50.0]
[1725901010192,4.8746,133.35,133.33,50.0]
[1725901010987,4.8746,133.35,133.31,50.0]
[1725901011298,4.8746,133.35,133.33,50.0]
[1725901011702,4.8746,133.35,133.29,50.0]
[1725901011884,4.8746,133.35,133.31,50.0]
[1725901012389,4.8746,133.35,133.29,50.0]
[1725901012607,4.8746,133.35,133.27,50.0]
[1725901013402,4.8746,133.35,133.25,50.0]
[1725901013573,45.12549,133.34,133.23,50.0]
[1725901014103,45.12549,133.34,133.21,60.0]
[1725901014286,45.12549,133.34,133.21,50.0]
[1725901014611,45.12549,133.34,133.25,50.0]
[1725901014806,45.12549,133.34,133.26,1.50030229]
[1725901015109,45.12549,133.34,133.25,50.0]
[1725901015781,45.12549,133.34,133.26,1.50028119]
[1725901015989,45.12549,133.34,133.25,50.0]
[1725901015990,45.12549,133.34,133.27,1.50022269]
[1725901016298,0.12549,133.34,133.27,1.50022269]
[1725901016478,0.12549,133.34,133.22,50.0]
[1725901016678,45.12549,133.34,133.22,50.0]
[1725901016878,45.12549,133.34,133.2,50.0]
[1725901017700,45.12549,133.34,133.16,50.0]
[1725901017701,0.12549,133.32,133.16,50.0]
[1725901017880,0.12549,133.3,133.16,50.0]
[1725901018206,45.12549,133.3,133.16,50.0]
[1725901018407,45.12549,133.3,133.18,50.0]
[1725901018879,45.12549,133.3,133.16,50.0]
[1725901019094,0.12549,133.28,133.16,50.0]
[1725901019480,45.12549,133.28,133.18,50.0]
[1725901019883,45.12549,133.28,133.19,1.5010145]
[1725901019884,0.12549,133.28,133.19,1.5010145]
[1725901020082,0.12549,133.28,133.18,50.0]
[1725901020410,0.12549,133.28,133.19,1.50092626]
[1725901020584,0.12549,133.28,133.2,1.50084815]
[1725901020888,0.12549,133.28,133.21,1.50094977]
[1725901021093,15.9524,133.29,133.21,1.50094977]
[1725901021414,15.9524,133.29,133.15,56.74035821]
[1725901021415,15.9524,133.29,133.24,50.0]
[1725901021589,6.1027,133.31,133.16,1.50059347]
[1725901021590,6.1027,133.31,133.26,50.0]
[1725901021904,7.83511273,133.34,133.22,50.0]
[1725901022108,7.83511273,133.34,133.24,50.0]
[1725901022808,7.83511273,133.34,133.26,50.0]
[1725901022983,20.5582,133.35,133.26,50.0]
[1725901023189,7.84538903,133.33,133.25,50.0]
[1725901023532,7.84538903,133.33,133.23,20.0]
[1725901023716,7.84538903,133.33,133.21,50.0]
[1725901023886,7.84538903,133.33,133.23,50.0]
[1725901024089,7.84538903,133.33,133.25,50.0]
[1725901024900,20.5582,133.35,133.25,50.0]
[1725901025304,20.5582,133.35,133.26,1.49977452]
[1725901025480,20.5582,133.35,133.27,51.49966198]
[1725901025885,20.5582,133.35,133.23,50.0]
[1725901026106,20.5582,133.35,133.26,50.0]
[1725901026408,20.5582,133.35,133.2,1.42756304]
[1725901026409,20.5582,133.35,133.24,50.0]
[1725901026706,20.5582,133.35,133.2,1.42681321]
[1725901026707,20.5582,133.35,133.26,50.0]
[1725901026889,0.12549,133.34,133.26,50.0]
[1725901027084,0.12549,133.34,133.23,50.0]
[1725901027313,45.12549,133.34,133.23,50.0]
[1725901027485,45.12549,133.34,133.21,50.0]
[1725901027808,45.12549,133.34,133.19,50.0]
[1725901028018,45.12549,133.34,133.22,50.0]
[1725901028415,45.12549,133.34,133.2,50.0]
[1725901029092,16.2866,133.31,133.18,50.0]
[1725901029297,0.12549,133.28,133.14,50.0]
[1725901029816,45.12549,133.28,133.16,50.0]
[1725901029998,45.12549,133.28,133.18,50.0]
[1725901030209,6.3764,133.29,133.2,50.0]
[1725901030408,6.3764,133.29,133.18,50.0]
[1725901030719,0.12549,133.28,133.18,50.0]
[1725901031599,0.12549,133.28,133.16,50.0]
[1725901031800,0.12549,133.28,133.14,50.0]
[1725901031801,45.12549,133.28,133.14,50.0]
[1725901032425,0.12549,133.26,133.14,50.0]
[1725901032596,45.12549,133.26,133.14,50.0]
[1725901032799,45.12549,133.26,133.12,50.0]
[1725901033025,45.12549,133.26,133.14,50.0]
[1725901033200,45.12549,133.26,133.12,50.0]
[1725901033805,6.6336,133.25,133.12,50.0]
[1725901034024,45.12549,133.24,133.12,50.0]
[1725901035422,0.12549,133.22,133.1,50.0]
[1725901035652,45.12549,133.22,133.1,50.0]
[1725901036129,45.12549,133.22,133.0,74.28635821]
[1725901036130,15.5972,133.21,133.08,50.0]
[1725901036312,15.5972,133.21,133.0,119.76246521]